bitfinex-derivatives/quotes_ETHF0:USTF0_20250428
["timestamp","ask_amount","ask_price","bid_price","bid_amount"]
[1745872989183,5.75335,1787.9,1787.8,2.74874]
[1745872992087,5.75335,1787.9,1787.8,1.11834]
[1745872992686,1.11841,1787.8,1787.7,2.81832]
[1745872992987,1.11847,1787.7,1787.6,1.11849]
[1745872993178,1.11847,1787.7,1787.6,2.79279]
[1745872993379,2.75217,1787.7,1787.6,2.79279]
[1745872996582,1.6337,1787.7,1787.6,2.79279]
[1745872997087,5.4357,1787.7,1787.6,2.79279]
[1745872999081,3.802,1787.7,1787.6,2.79279]
[1745872999288,3.802,1787.7,1787.6,3.66829]
[1745873000278,4.32617,1787.9,1787.8,1.11841]
[1745873000774,1.11837,1787.9,1787.8,1.11841]
[1745873002489,2.79444,1788.0,1787.9,1.11835]
[1745873002690,1.11838,1787.9,1787.8,1.11837]
[1745873002989,1.11837,1787.9,1787.8,1.11837]
[1745873004190,4.92037,1787.9,1787.8,1.11837]
[1745873006393,4.92037,1787.9,1787.8,2.77947]
[1745873006797,3.802,1787.9,1787.8,2.77947]
[1745873007094,3.802,1787.9,1787.8,3.62387]
[1745873007294,5.13664,1788.1,1788.0,1.11828]
[1745873007799,1.11828,1788.0,1787.9,3.58773]
[1745873014396,1.11828,1788.0,1787.9,1.11833]
[1745873014605,1.11828,1788.0,1787.7,2.79604]
[1745873014606,1.11849,1787.8,1787.7,2.87197]
[1745873015098,4.92049,1787.8,1787.7,2.87197]
[1745873016194,4.92049,1787.8,1787.7,1.7535]
[1745873016401,1.11851,1787.7,1787.5,4.8313]
[1745873016602,3.68071,1787.7,1787.6,2.87197]
[1745873017095,4.54521,1787.7,1787.6,2.87197]
[1745873017696,4.54521,1787.7,1787.6,1.7535]
[1745873018090,4.54521,1787.7,1787.4,1.11861]
[1745873018091,3.4267,1787.7,1787.4,1.11861]
[1745873018300,2.71719,1787.6,1787.5,1.1186]
[1745873019105,6.51919,1787.6,1787.5,1.1186]
[1745873020110,2.71719,1787.6,1787.5,1.1186]
[1745873023802,1.1186,1787.5,1787.4,1.7267]
[1745873024105,1.11885,1787.2,1787.1,1.11881]
[1745873024410,1.11885,1787.2,1787.1,2.86171]
[1745873025018,3.57097,1787.3,1787.2,1.11878]
[1745873025321,1.11877,1787.3,1787.2,2.86168]
[1745873025520,3.57097,1787.3,1787.2,1.7429]
[1745873025722,1.11878,1787.2,1787.1,1.11883]
[1745873025911,2.75818,1787.2,1787.1,1.11883]
[1745873026114,1.11885,1787.1,1787.0,2.86181]
[1745873026307,1.11885,1787.1,1787.0,1.7429]
[1745873026308,3.58095,1787.1,1787.0,1.7429]
[1745873026920,1.11891,1787.0,1786.9,1.11895]
[1745873027122,2.76421,1787.0,1786.9,2.86565]
[1745873028320,1.6453,1787.0,1786.9,2.86565]
[1745873029920,1.94155,1787.1,1787.0,1.11891]
[1745873030112,3.55715,1787.1,1787.0,1.663]
[1745873030313,5.6461,1787.1,1786.9,1.11895]
[1745873030514,2.73456,1787.0,1786.9,1.11895]
[1745873030708,1.6156,1787.0,1786.9,1.11895]
[1745873030924,3.2078,1787.1,1787.0,1.11891]
[1745873031623,3.2078,1787.1,1787.0,1.97691]
[1745873031825,3.2078,1787.1,1787.0,3.63991]
[1745873032326,4.32665,1787.1,1787.0,3.63991]
[1745873032516,4.32665,1787.1,1787.0,2.78191]
[1745873033024,5.16275,1787.1,1787.0,2.78191]
[1745873033217,1.11891,1787.0,1786.9,1.11892]
[1745873033414,1.11891,1787.0,1786.9,1.11897]
[1745873033415,1.6453,1787.0,1786.9,1.11897]
[1745873033616,1.11897,1786.9,1786.8,4.32681]
[1745873033822,1.97527,1786.9,1786.8,4.32681]
[1745873034114,1.97527,1786.9,1786.8,3.2078]
[1745873034320,1.97527,1786.9,1786.8,4.32683]
[1745873035423,1.97527,1786.9,1786.8,1.11903]
[1745873037528,0.8563,1786.9,1786.8,1.11903]
[1745873037829,5.16279,1787.1,1786.8,4.914]
[1745873038030,5.16279,1787.1,1787.0,1.11891]
[1745873038723,4.0439,1787.1,1787.0,2.76771]
[1745873039325,6.84885,1787.1,1787.0,1.6488]
[1745873039524,6.84885,1787.1,1787.0,2.76771]
[1745873039725,5.73,1787.1,1787.0,2.76771]
[1745873040933,3.2078,1787.1,1787.0,2.76771]
[1745873041231,3.2078,1787.1,1787.0,3.58001]
[1745873045837,4.0328,1787.2,1787.1,1.11885]
[1745873046038,4.0328,1787.2,1787.1,2.83885]
[1745873047336,5.15158,1787.2,1787.1,2.83885]
[1745873047537,6.84868,1787.2,1787.1,2.83885]
[1745873047737,5.7299,1787.2,1787.1,2.83885]
[1745873048239,6.84868,1787.2,1787.1,2.83885]
[1745873049532,6.84868,1787.2,1787.0,0.8123]
[1745873049533,1.11885,1787.1,1787.0,0.8123]
[1745873049735,1.11895,1787.0,1786.9,1.11892]
[1745873049933,0.8701,1787.0,1786.9,1.11892]
[1745873050130,1.98901,1787.0,1786.9,1.11892]
[1745873050334,3.74141,1787.0,1786.9,1.11892]
[1745873050542,1.11897,1786.9,1786.8,2.82689]
[1745873050741,2.78987,1786.9,1786.8,1.11899]
[1745873050942,1.11903,1786.8,1786.7,2.8733]
[1745873051241,2.78993,1786.8,1786.7,1.1191]
[1745873051441,1.1191,1786.7,1786.6,2.87333]
[1745873051631,3.604,1786.7,1786.6,2.87333]
[1745873053143,2.4849,1786.7,1786.6,2.87333]
[1745873053441,3.604,1786.7,1786.6,2.87333]
[1745873054043,2.4849,1786.7,1786.6,2.87333]
[1745873055143,0.814,1786.7,1786.6,2.87333]
[1745873056039,1.96053,1786.8,1786.7,1.1191]
[1745873056344,1.96053,1786.8,1786.7,2.7631]
[1745873057241,3.63253,1786.8,1786.7,2.7631]
[1745873058140,2.5135,1786.8,1786.7,2.7631]
[1745873058441,3.818,1787.0,1786.9,1.11897]
[1745873058442,4.93694,1787.0,1786.9,1.11897]
[1745873058642,1.11897,1786.9,1786.8,1.6383]
[1745873058840,2.79097,1786.9,1786.8,1.6383]
[1745873059445,1.672,1786.9,1786.6,2.4477]
[1745873059644,3.61008,1786.8,1786.7,1.11903]
[1745873060747,1.1191,1786.7,1786.6,2.75741]
[1745873061043,3.593,1786.7,1786.6,2.75741]
[1745873061235,1.11916,1786.6,1786.5,41.91917]
[1745873061435,1.11916,1786.6,1786.5,2.78957]
[1745873061635,2.73416,1786.6,1786.5,2.78957]
[1745873061838,1.615,1786.6,1786.5,2.78957]
[1745873062445,2.73416,1786.6,1786.5,2.78957]
[1745873062648,1.615,1786.6,1786.5,2.78957]
[1745873063149,2.73416,1786.6,1786.5,2.78957]
[1745873063544,1.11922,1786.5,1786.4,3.2078]
[1745873063739,1.11922,1786.5,1786.2,3.818]
[1745873063740,1.11935,1786.3,1786.2,4.32718]
[1745873063941,1.11935,1786.3,1786.2,3.2078]
[1745873064141,1.6067,1786.4,1786.1,2.75163]
[1745873064441,1.11941,1786.2,1786.1,2.75163]
[1745873064642,1.11947,1786.1,1786.0,4.0604]
[1745873064947,1.94617,1786.1,1786.0,3.60432]
[1745873065143,0.8267,1786.1,1786.0,3.60432]
[1745873066250,1.6067,1786.2,1786.1,1.11947]
[1745873066451,1.6067,1786.2,1785.9,44.0078]
[1745873066651,0.7965,1786.1,1786.0,1.11954]
[1745873066851,1.91597,1786.1,1786.0,2.80924]
[1745873067050,3.52437,1786.1,1786.0,2.80924]
[1745873068047,3.52437,1786.1,1786.0,1.11954]
[1745873068644,2.4049,1786.1,1786.0,1.11954]
[1745873069454,2.4049,1786.1,1786.0,2.73834]
[1745873069748,3.5244,1786.1,1785.9,3.2078]
[1745873069956,2.78414,1786.0,1785.9,4.3274]
[1745873070150,2.78414,1786.0,1785.9,3.2078]
[1745873070348,1.11966,1785.8,1785.7,4.8266]
[1745873070955,1.11966,1785.8,1785.7,5.94627]
[1745873070956,1.6646,1785.8,1785.7,5.94627]
[1745873071255,2.78426,1785.8,1785.7,5.94627]
[1745873071455,1.6646,1785.8,1785.7,5.94627]
[1745873071749,2.78426,1785.8,1785.7,5.94627]
[1745873072157,3.59626,1785.8,1785.7,5.94627]
[1745873073463,3.59626,1785.8,1785.7,4.8266]
[1745873073662,1.11972,1785.7,1785.6,1.11975]
[1745873073959,2.82492,1785.7,1785.6,1.11975]
[1745873074257,2.82492,1785.7,1785.6,1.6573]
[1745873074558,2.82492,1785.7,1785.6,2.77709]
[1745873075756,1.7052,1785.7,1785.6,2.77709]
[1745873075956,2.82492,1785.7,1785.6,2.77709]
[1745873076657,1.7052,1785.7,1785.6,2.77709]
[1745873076861,2.82492,1785.7,1785.6,2.77709]
[1745873077954,1.93166,1785.8,1785.7,1.11972]
[1745873078154,1.93166,1785.8,1785.7,2.72132]
[1745873078648,3.66696,1785.8,1785.7,2.72132]
[1745873085055,1.93166,1785.8,1785.7,2.72132]
[1745873085450,7.0258,1786.1,1785.7,7.60858]
[1745873085657,7.0258,1786.1,1786.0,1.11954]
[1745873085658,8.14532,1786.1,1786.0,1.11954]
[1745873086166,9.75712,1786.1,1786.0,1.11954]
[1745873086566,1.11954,1786.0,1785.9,2.83656]
[1745873090471,9.7571,1786.1,1786.0,1.11954]
[1745873090767,4.3273,1786.1,1786.0,2.78914]
[1745873091170,4.3273,1786.1,1786.0,1.11954]
[1745873091363,6.0383,1786.1,1786.0,1.11954]
[1745873094368,6.0383,1786.1,1785.9,1.6696]
[1745873094369,5.4217,1786.2,1786.1,1.11947]
[1745873094667,6.54111,1786.2,1786.1,1.11947]
[1745873095469,6.54111,1786.2,1786.1,1.94117]
[1745873095673,5.4217,1786.2,1786.1,1.94117]
[1745873095865,6.54111,1786.2,1786.1,1.94117]
[1745873096771,8.15681,1786.2,1786.1,1.94117]
[1745873097571,8.15681,1786.2,1786.1,1.11947]
[1745873100373,4.6258,1786.2,1786.1,1.11947]
[1745873100673,0.45790861,1786.3,1786.2,1.11941]
[1745873100871,2.4719,1786.4,1786.3,1.11935]
[1745873101057,8.14202,1786.5,1786.4,1.11929]
[1745873101460,9.77712,1786.5,1786.4,1.11929]
[1745873102269,10.21928712,1786.5,1786.4,1.11929]
[1745873102775,1.11929,1786.4,1786.3,2.82239]
[1745873102978,1.11941,1786.2,1786.1,4.32723]
[1745873103663,2.71321,1786.2,1786.1,4.32723]
[1745873105074,2.71321,1786.2,1786.1,3.2078]
[1745873105270,2.71321,1786.2,1786.1,4.32727]
[1745873106874,2.71321,1786.2,1786.1,6.07817]
[1745873108081,1.5938,1786.2,1786.1,6.07817]
[1745873108281,2.71321,1786.2,1786.1,6.07817]
[1745873113078,1.11941,1786.2,1786.1,6.07817]
[1745873113379,2.7592,1786.3,1786.2,1.11941]
[1745873113582,2.7592,1786.3,1786.2,2.81701]
[1745873114284,1.6398,1786.3,1786.2,2.81701]
[1745873114480,3.2078,1786.4,1786.3,1.11935]
[1745873114781,3.2078,1786.4,1786.3,3.62385]
[1745873114976,4.32709,1786.4,1786.3,3.62385]
[1745873116484,1.11929,1786.4,1786.3,3.62385]
[1745873116681,2.80919,1786.4,1786.3,3.62385]
[1745873116982,6.98804712,1786.5,1786.4,1.11929]
[1745873117178,8.67794712,1786.5,1786.4,2.78589]
[1745873117481,1.11935,1786.4,1786.3,1.11932]
[1745873117681,2.80925,1786.4,1786.3,1.11932]
[1745873117882,1.11935,1786.3,1786.2,1.6748]
[1745873118183,1.11935,1786.3,1786.2,2.79421]
[1745873118184,2.70985,1786.3,1786.2,2.79421]
[1745873118582,1.11935,1786.3,1786.2,2.79421]
[1745873119779,7.0218,1786.6,1786.3,2.79838]
[1745873120081,8.14101,1786.6,1786.5,1.11922]
[1745873120582,8.14101,1786.6,1786.5,2.79402]
[1745873122485,8.59959976,1786.6,1786.5,2.79402]
[1745873122783,8.59959976,1786.6,1786.5,1.6748]
[1745873122987,8.59959976,1786.6,1786.5,2.79402]
[1745873123185,8.14101,1786.6,1786.5,2.79402]
[1745873123386,8.58698214,1786.6,1786.5,1.6748]
[1745873123687,8.14101,1786.6,1786.5,2.79402]
[1745873124886,4.93321,1786.6,1786.5,2.79402]
[1745873125686,5.38852187,1786.6,1786.5,1.6748]
[1745873125888,7.07662187,1786.6,1786.5,1.6748]
[1745873127187,7.07662187,1786.6,1786.5,2.79402]
[1745873127386,7.07662187,1786.6,1786.5,1.6748]
[1745873127588,1.11941,1786.3,1786.1,3.2078]
[1745873127789,1.11941,1786.3,1786.2,3.69988]
[1745873129390,1.11941,1786.3,1786.0,1.11951]
[1745873129691,1.11954,1786.0,1785.9,5.15806]
[1745873129886,1.11954,1786.0,1785.9,3.70006]
[1745873130093,2.83682,1786.1,1786.0,1.11954]
[1745873130392,2.83682,1786.1,1786.0,2.74794]
[1745873130584,2.83682,1786.1,1786.0,1.6284]
[1745873130790,2.83682,1786.1,1786.0,2.74794]
[1745873131299,9.9251,1786.1,1785.4,8.55299469]
[1745873131591,1.11979,1785.6,1785.5,1.6284]
[1745873131780,3.2078,1785.8,1785.7,1.11972]
[1745873131981,0.8337,1785.8,1785.7,1.11972]
[1745873132184,2.4352,1785.9,1785.8,1.11966]
[1745873132384,2.4352,1785.9,1785.7,1.11969]
[1745873132385,3.55486,1785.9,1785.7,1.11969]
[1745873132691,2.4352,1785.9,1785.8,1.11966]
[1745873132891,7.0188,1786.0,1785.9,1.1196]
[1745873133191,0.8337,1786.1,1786.0,1.11954]
[1745873133391,1.95317,1786.1,1786.0,1.11954]
[1745873133579,3.59877,1786.1,1786.0,1.11954]
[1745873134498,1.11974,1785.7,1785.5,1.11981]
[1745873134794,1.11971,1785.8,1785.6,1.11978]
[1745873134993,1.11971,1785.8,1785.6,1.11975]
[1745873135196,1.11976,1785.7,1785.5,4.32762]
[1745873135395,3.62079,1785.8,1785.6,2.81644]
[1745873135896,3.62079,1785.8,1785.7,1.6967]
[1745873136393,3.62079,1785.8,1785.7,2.81642]
[1745873136587,5.78614,1785.9,1785.7,1.6967]
[1745873136789,5.78614,1785.9,1785.8,2.72316]
[1745873136989,1.11955,1786.0,1785.9,1.1196]
[1745873137197,1.11955,1786.0,1785.9,2.3974]
[1745873137396,1.11955,1786.0,1785.9,3.517]
[1745873137593,1.11955,1786.0,1785.9,2.3974]
[1745873137994,1.11955,1786.0,1785.9,3.517]
[1745873138193,1.11955,1786.0,1785.9,7.319]
[1745873139403,3.59091,1786.1,1785.9,7.319]
[1745873139699,3.59091,1786.1,1786.0,1.736]
[1745873140896,1.1196,1785.9,1785.8,41.91962]
[1745873141098,1.1196,1785.9,1785.8,42.536]
[1745873141397,1.6388,1786.0,1785.8,43.65566]
[1745873141597,1.6388,1786.0,1785.7,2.75158]
[1745873141898,1.11965,1785.9,1785.7,4.48758]
[1745873142195,1.11958,1786.0,1785.8,2.85562]
[1745873142398,1.11958,1786.0,1785.9,1.736]
[1745873142594,1.11966,1785.8,1785.7,5.4339]
[1745873142900,1.11966,1785.8,1785.7,6.2497]
[1745873143095,0.8009,1785.9,1785.7,2.4477]
[1745873143300,2.4079,1785.8,1785.7,3.56742]
[1745873143506,3.52756,1785.8,1785.7,1.5953]
[1745873143792,1.11972,1785.7,1785.6,3.2078]
[1745873143998,1.11972,1785.7,1785.6,4.32759]
[1745873144700,2.4079,1785.8,1785.6,4.32759]
[1745873144701,3.5276,1785.8,1785.6,3.2078]
[1745873144893,3.5276,1785.8,1785.6,4.32753]
[1745873145400,3.5276,1785.8,1785.7,1.11972]
[1745873146501,1.11972,1785.7,1785.6,4.32754]
[1745873147104,1.11972,1785.7,1785.6,1.11974]
[1745873148000,1.11979,1785.6,1785.5,6.53754]
[1745873148205,1.11979,1785.6,1785.5,2.73554]
[1745873149206,1.11979,1785.6,1785.5,6.53754]
[1745873150201,2.77916,1785.7,1785.6,1.11979]
[1745873154305,1.92299,1785.8,1785.7,1.11972]
[1745873155711,8.13927,1786.2,1786.1,1.11947]
[1745873155898,10.27315187,1786.6,1786.1,3.2078]
[1745873156102,1.11931,1786.4,1786.3,1.11935]
[1745873156403,1.11931,1786.4,1786.3,1.6214]
[1745873156811,2.73276,1786.5,1786.4,1.11929]
[1745873157402,2.73276,1786.5,1786.4,2.74069]
[1745873157603,1.6135,1786.5,1786.4,2.74069]
[1745873157910,2.73272,1786.5,1786.4,2.74069]
[1745873160307,1.6135,1786.5,1786.4,2.74069]
[1745873160513,0.8136,1786.5,1786.4,2.74069]
[1745873161715,1.93282,1786.5,1786.4,2.74069]
[1745873162013,0.8136,1786.5,1786.4,2.74069]
[1745873163414,5.3994,1786.6,1786.5,1.11922]
[1745873163724,5.12317,1786.8,1786.7,1.1191]
[1745873164017,1.11911,1786.7,1786.6,1.11911]
[1745873164316,3.58313,1786.8,1786.7,2.7216]
[1745873164513,0.7963,1786.8,1786.7,2.7216]
[1745873164718,3.809,1787.4,1787.1,1.11878]
[1745873164922,1.11885,1787.1,1787.0,1.11886]
[1745873165216,1.11885,1787.1,1787.0,2.72136]
[1745873166103,4.8493,1787.3,1787.0,1.6025]
[1745873166314,3.2078,1787.5,1787.1,4.39958]
[1745873166515,3.2078,1787.5,1787.4,1.11866]
[1745873167617,1.6678,1787.6,1787.2,6.10995]
[1745873167618,1.6678,1787.6,1787.5,1.1186]
[1745873168112,7.0158,1787.7,1787.6,1.11853]
[1745873168521,8.695,1787.7,1787.6,1.11853]
[1745873169116,9.2892,1787.7,1787.6,1.11853]
[1745873170221,5.4872,1787.7,1787.6,1.11853]
[1745873170420,3.808,1787.7,1787.6,1.11853]
[1745873170825,1.7262,1787.9,1787.8,1.11841]
[1745873171818,2.84455,1787.9,1787.8,1.11841]
[1745873172120,6.64655,1787.9,1787.8,1.11841]
[1745873173108,5.5282,1787.9,1787.8,1.11841]
[1745873173918,3.802,1787.9,1787.8,1.11841]
[1745873174223,65.61914,1788.4,1787.8,2.79603]
[1745873174224,4.8762,1788.2,1787.8,2.79603]
[1745873174427,4.8762,1788.2,1788.1,1.11822]
[1745873174826,1.6684,1788.2,1788.1,1.11822]
[1745873175218,1.6684,1788.2,1788.1,2.80972]
[1745873175626,4.6133,1788.3,1788.2,1.11816]
[1745873175822,4.6133,1788.3,1788.2,2.80966]
[1745873176023,5.7314,1788.3,1788.2,2.80966]
[1745873176224,11.2781,1788.3,1788.2,2.80966]
[1745873176522,10.16,1788.3,1788.2,2.80966]
[1745873176725,6.353,1788.3,1788.2,2.80966]
[1745873177026,3.802,1788.3,1788.2,2.80966]
[1745873177228,0.8431,1788.4,1788.3,1.1181]
[1745873177525,0.8431,1788.4,1788.3,2.7208]
[1745873178128,4.6451,1788.4,1788.3,2.7208]
[1745873179222,6.3105,1788.4,1788.3,2.7208]
[1745873182425,5.4674,1788.4,1788.3,2.7208]
[1745873182622,3.802,1788.4,1788.3,3.5187]
[1745873183118,2.4396,1788.6,1788.3,6.7265]
[1745873183325,2.4396,1788.6,1788.5,1.11797]
[1745873183517,3.55751,1788.6,1788.5,1.11797]
[1745873183723,2.4396,1788.6,1788.5,1.11797]
[1745873184222,6.2416,1788.6,1788.5,1.11797]
[1745873185835,3.802,1788.6,1788.5,1.11797]
[1745873186722,3.802,1788.6,1788.5,4.32577]
[1745873187329,1.757,1788.7,1788.6,1.11791]
[1745873187517,6.06075,1788.9,1788.6,1.6638]
[1745873187723,6.06075,1788.9,1788.8,1.11778]
[1745873187724,6.7,1788.9,1788.8,1.11778]
[1745873188124,10.502,1788.9,1788.8,1.11778]
[1745873189023,11.61972,1788.9,1788.8,1.11778]
[1745873191629,1.11791,1788.6,1788.5,4.32575]
[1745873191836,1.11791,1788.6,1788.5,1.11795]
[1745873192136,2.77629,1788.7,1788.6,1.11791]
[1745873193139,4.943,1788.9,1788.8,1.11778]
[1745873193327,1.7352,1788.9,1788.8,1.11778]
[1745873193528,1.6584,1789.1,1789.0,1.11766]
[1745873193739,3.3372,1789.1,1789.0,1.11766]
[1745873193934,6.545,1789.1,1789.0,1.11766]
[1745873194132,10.347,1789.1,1789.0,1.11766]
[1745873194333,10.347,1789.1,1788.9,1.11767]
[1745873194334,1.11766,1789.0,1788.9,1.11767]
[1745873194528,2.78416,1789.0,1788.9,1.11767]
[1745873194834,1.11775,1788.9,1788.8,1.11773]
[1745873195035,2.78425,1788.9,1788.8,1.11773]
[1745873195225,6.58625,1788.9,1788.8,1.11773]
[1745873198537,5.4685,1788.9,1788.8,1.11773]
[1745873198743,6.58622,1788.9,1788.8,2.72603]
[1745873199535,1.11791,1788.6,1788.5,1.6083]
[1745873199739,1.11797,1788.5,1788.4,1.11799]
[1745873200042,1.11802,1788.5,1788.4,1.118]
[1745873200336,4.92002,1788.5,1788.4,1.118]
[1745873200533,7.42802,1788.5,1788.4,1.118]
[1745873200932,1.11803,1788.4,1788.3,2.72635]
[1745873201234,1.6778,1788.4,1788.2,40.8]
[1745873201432,1.9297,1788.3,1788.2,1.11812]
[1745873202240,5.7317,1788.3,1788.2,1.11812]
[1745873202538,4.6136,1788.3,1788.2,1.11812]
[1745873202942,6.2914,1788.3,1788.2,1.11812]
[1745873203447,4.6136,1788.3,1788.2,2.83762]
[1745873203739,4.6136,1788.3,1788.2,3.65222]
[1745873204130,0.8116,1788.3,1788.2,3.65222]
[1745873205242,4.6136,1788.3,1788.2,3.65222]
[1745873207141,0.8116,1788.3,1788.2,3.65222]
[1745873208143,4.6136,1788.3,1788.2,3.65222]
[1745873209432,4.6136,1788.3,1788.2,2.83762]
[1745873209635,6.2647,1788.3,1788.2,2.83762]
[1745873209836,4.6136,1788.3,1788.2,2.83762]
[1745873210037,3.802,1788.3,1788.2,2.83762]
[1745873210238,4.39569,1788.5,1788.4,1.11803]
[1745873211241,8.19769,1788.5,1788.4,1.11803]
[1745873212451,7.0797,1788.5,1788.4,1.11803]
[1745873212640,3.802,1788.5,1788.4,1.11803]
[1745873212945,3.802,1788.5,1788.4,1.98153]
[1745873213145,1.11785,1788.7,1788.6,1.11791]
[1745873213345,2.81355,1788.7,1788.6,1.11791]
[1745873214144,6.61555,1788.7,1788.6,1.11791]
[1745873215740,1.11791,1788.6,1788.5,1.11792]
[1745873215938,2.80961,1788.6,1788.5,1.11792]
[1745873216137,6.61161,1788.6,1788.5,1.11792]
[1745873218646,5.4937,1788.6,1788.5,1.11792]
[1745873218838,6.61161,1788.6,1788.5,1.11792]
[1745873222641,5.4937,1788.6,1788.4,1.709]
[1745873222847,1.1181,1788.3,1788.2,2.80391]
[1745873223243,4.9201,1788.3,1788.2,2.80391]
[1745873223842,6.5542,1788.3,1788.2,2.80391]
[1745873226247,5.4361,1788.3,1788.1,4.9026]
[1745873226459,1.11833,1788.0,1787.9,1.11832]
[1745873227046,2.71148,1788.1,1788.0,1.11828]
[1745873227652,1.11828,1788.0,1787.9,2.79079]
[1745873228352,1.11835,1787.9,1787.8,42.78046]
[1745873228547,3.64615,1787.9,1787.8,2.74406]
[1745873228753,3.64615,1787.9,1787.8,1.11836]
[1745873229346,2.5278,1787.9,1787.6,3.2078]
[1745873229549,1.11847,1787.7,1787.6,4.32633]
[1745873229853,2.82046,1787.8,1787.7,1.11847]
[1745873230155,1.11847,1787.7,1787.6,4.32628]
[1745873230353,2.82047,1787.7,1787.6,5.95198]
[1745873230655,2.82047,1787.7,1787.6,2.74418]
[1745873230841,2.82047,1787.7,1787.6,1.6257]
[1745873231257,2.82047,1787.7,1787.6,2.74423]
[1745873233256,2.82047,1787.7,1787.6,1.6257]
[1745873234651,1.11853,1787.6,1787.5,1.11855]
[1745873234851,4.42293,1787.6,1787.5,1.11855]
[1745873235346,4.42293,1787.6,1787.5,2.77065]
[1745873235948,3.3044,1787.6,1787.5,2.77065]
[1745873237054,4.42293,1787.6,1787.5,2.77065]
[1745873237558,3.3044,1787.6,1787.4,3.2078]
[1745873237752,1.11879,1787.3,1787.2,5.95827]
[1745873238257,1.11879,1787.3,1787.2,3.2078]
[1745873238461,1.11879,1787.3,1787.2,4.32658]
[1745873238761,1.94789,1787.3,1787.2,4.32658]
[1745873238960,1.94789,1787.3,1787.2,5.95828]
[1745873240752,0.8291,1787.3,1787.2,5.95828]
[1745873240958,1.11863,1787.5,1787.4,1.1186]
[1745873241955,3.4123,1787.6,1787.3,1.6544]
[1745873241956,6.20868,1787.6,1787.3,1.6544]
[1745873242157,1.11866,1787.5,1787.4,1.11863]
[1745873242959,2.87796,1787.5,1787.4,1.11863]
[1745873243161,6.67996,1787.5,1787.4,1.11863]
[1745873244258,1.11866,1787.4,1787.3,2.77307]
[1745873244956,1.11866,1787.4,1787.3,1.6544]
[1745873245156,1.11866,1787.4,1787.0,4.0495]
[1745873245157,4.54538,1787.4,1787.0,4.0495]
[1745873245358,1.11881,1787.2,1787.1,1.11878]
[1745873245660,1.11881,1787.2,1787.1,2.74618]
[1745873245961,3.70495,1787.3,1787.2,1.11878]
[1745873246160,3.70495,1787.3,1787.2,2.73828]
[1745873247153,1.11885,1787.2,1787.1,1.11881]
[1745873247451,3.65495,1787.2,1787.1,1.11881]
[1745873248060,3.65495,1787.2,1787.1,2.73831]
[1745873248660,2.5361,1787.2,1787.1,2.73831]
[1745873248861,3.65488,1787.2,1787.1,2.73831]
[1745873250061,2.5361,1787.2,1787.1,2.73831]
[1745873250359,0.8544,1787.2,1787.1,2.73831]
[1745873254061,5.4973,1787.4,1787.3,1.11872]
[1745873254263,3.8,1787.4,1787.3,1.11872]
[1745873254466,3.2078,1787.5,1787.4,1.11866]
[1745873255161,4.3264,1787.5,1787.4,1.11866]
[1745873260664,3.2078,1787.5,1787.4,1.11866]
[1745873260857,3.2078,1787.5,1787.4,1.93226]
[1745873261465,4.3264,1787.5,1787.4,1.93226]
[1745873262364,3.2078,1787.5,1787.4,1.93226]
[1745873262565,4.3264,1787.5,1787.4,1.93226]
[1745873262765,3.2078,1787.5,1787.4,1.93226]
[1745873263467,4.3264,1787.5,1787.4,1.93226]
[1745873263664,1.1186,1787.5,1787.4,1.93226]
[1745873264966,1.11859,1787.6,1787.5,1.11853]
[1745873265166,1.11859,1787.6,1787.5,3.55323]
[1745873266061,4.92059,1787.6,1787.5,3.55323]
[1745873266468,3.802,1787.6,1787.5,3.55323]
[1745873267169,8.31678,1787.7,1787.6,1.11853]
[1745873267378,8.31678,1787.7,1787.6,2.75253]
[1745873268170,12.11878,1787.7,1787.6,2.75253]
[1745873272175,8.31678,1787.7,1787.6,2.75253]
[1745873272373,1.11876,1787.3,1787.2,3.2078]
[1745873272671,18.20242,1787.7,1787.1,2.7388]
[1745873272672,1.11878,1787.2,1787.1,2.7388]
[1745873272874,1.93208,1787.2,1787.1,2.7388]
[1745873273564,2.4043,1787.2,1786.9,40.8]
[1745873273971,3.52313,1787.2,1787.1,1.11885]
[1745873280174,2.4043,1787.2,1787.1,1.11885]
[1745873281073,3.52308,1787.2,1787.1,1.11885]
[1745873282579,4.0531,1787.3,1787.2,1.11878]
[1745873282774,3.2078,1787.3,1787.2,1.11878]
[1745873282976,1.11862,1787.5,1787.1,2.4798]
[1745873282977,8.1214,1787.5,1787.1,2.4798]
[1745873283274,8.1214,1787.5,1787.4,1.11866]
[1745873283669,3.795,1787.5,1787.4,1.11866]
[1745873284065,4.9136,1787.5,1787.4,1.92286]
[1745873284273,3.795,1787.5,1787.4,1.92286]
[1745873284679,4.9136,1787.5,1787.4,1.11866]
[1745873284872,6.6348,1787.5,1787.4,1.11866]
[1745873287679,5.5162,1787.5,1787.4,1.11866]
[1745873288278,6.6348,1787.5,1787.4,1.11866]
[1745873288884,5.5162,1787.5,1787.4,1.11866]
[1745873289287,6.6348,1787.5,1787.4,1.11866]
[1745873289484,5.5162,1787.5,1787.4,1.11866]
[1745873290487,6.6348,1787.5,1787.4,1.11866]
[1745873297400,5.5162,1787.5,1787.4,1.11866]
[1745873297600,6.6348,1787.5,1787.4,1.11866]
[1745873299103,5.5162,1787.5,1787.4,1.11866]